fUSD/lending_fUSD_20240301
["ID","MTS","AMOUNT","RATE_DAILY","PERIOD"]
[315952188,1709301048874,-629.10017784,0.00021917,2]
[315952189,1709301048883,-500.0,0.00021917,2]
[315952190,1709301048891,-500.0,0.00021917,2]
[315952191,1709301048901,-500.64383489,0.00021917,2]
[315952192,1709301048912,-500.0,0.00021917,2]
[315952193,1709301048921,-500.0,0.00021917,2]
[315952194,1709301048933,-500.0,0.00021917,2]
[315952195,1709301048941,-500.0,0.00021917,2]
[315952196,1709301048951,-525.1939274,0.00021917,2]
[315952197,1709301048960,-649.38724945,0.00021917,2]
[315952198,1709301048969,-500.0,0.00021917,2]
[315952199,1709301048977,-500.0,0.00021917,2]
[315952200,1709301048986,-500.0,0.00021917,2]
[315952201,1709301048995,-500.0,0.00021917,2]
[315952202,1709301049004,-500.0,0.00021917,2]
[315952203,1709301049015,-500.0,0.00021917,2]
[315952204,1709301049023,-428.99309397,0.00021917,2]
[315952205,1709301049033,-540.49228392,0.00021917,2]
[315952206,1709301049042,-500.0,0.00021917,2]
[315952207,1709301049051,-500.0,0.00021917,2]
[315952208,1709301049060,-500.0,0.00021917,2]
[315952209,1709301049070,-500.0,0.00021917,2]
[315952210,1709301049079,-500.0,0.00021917,2]
[315952211,1709301049088,-500.0,0.00021917,2]
[315952212,1709301049097,-500.0,0.00021917,2]
[315952213,1709301049106,-514.62841726,0.00021917,2]
[315952214,1709301049115,-500.0,0.00021917,2]
[315952215,1709301049124,-500.0,0.00021917,2]
[315952216,1709301049133,-500.0,0.00021917,2]
[315952217,1709301049143,-154.83474759,0.00021917,2]
[315952218,1709301049151,-500.0,0.00021917,2]
[315952219,1709301049161,-500.0,0.00021917,2]
[315952220,1709301049170,-500.0,0.00021917,2]
[315952221,1709301049179,-163.43926863,0.00021917,2]
[315952222,1709301049190,-500.0,0.00021917,2]
[315952223,1709301049199,-500.0,0.00021917,2]
[315952224,1709301049208,-500.0,0.00021917,2]
[315952225,1709301049218,-509.53023778,0.00021917,2]
[315952226,1709301049226,-500.0,0.00021917,2]
[315952227,1709301049236,-514.95658552,0.00021917,2]
[315952228,1709301049245,-500.0,0.00021917,2]
[315952229,1709301049253,-500.0,0.00021917,2]
[315952230,1709301049262,-500.0,0.00021917,2]
[315952231,1709301049271,-500.0,0.00021917,2]
[315952232,1709301049280,-513.04727625,0.00021917,2]
[315952233,1709301049289,-500.0,0.00021917,2]
[315952234,1709301049298,-500.0,0.00021917,2]
[315952235,1709301049309,-500.0,0.00021917,2]
[315952236,1709301049318,-500.0,0.00021917,2]
[315952237,1709301049328,-500.0,0.00021917,2]
[315952238,1709301049338,-501.07951866,0.00021917,2]
[315952239,1709301049347,-500.0,0.00021917,2]
[315952240,1709301049356,-521.74763464,0.00021917,2]
[315952241,1709301049366,-500.0,0.00021917,2]
[315952242,1709301049376,-500.0,0.00021917,2]
[315952243,1709301049385,-494.94068829,0.00021917,2]
[315952244,1709301049395,-500.0,0.00021917,2]
[315952245,1709301049405,-500.0,0.00021917,2]
[315952246,1709301049416,-500.0,0.00021917,2]
[315952247,1709301049426,-518.05240421,0.00021917,2]
[315952248,1709301049437,-500.0,0.00021917,2]
[315952249,1709301049446,-500.0,0.00021917,2]
[315952250,1709301049456,-500.0,0.00021917,2]
[315952251,1709301049465,-509.17796029,0.00021917,2]
[315952252,1709301049475,-500.0,0.00021917,2]
[315952253,1709301049485,-500.0,0.00021917,2]
[315952254,1709301049494,-500.0,0.00021917,2]
[315952255,1709301049503,-505.99090478,0.00021917,2]
[315952256,1709301049513,-500.0,0.00021917,2]
[315952257,1709301049523,-500.0,0.00021917,2]
[315952258,1709301049532,-500.0,0.00021917,2]
[315952259,1709301049542,-500.0,0.00021917,2]
[315952260,1709301049551,-473.07541827,0.00021917,2]
[315952261,1709301049561,-500.0,0.00021917,2]
[315952262,1709301049570,-527.7,0.00021917,2]
[315952263,1709301049582,-514.92619416,0.00021917,2]
[315952264,1709301049592,-500.0,0.00021917,2]
[315952265,1709301049601,-501.75480101,0.00021917,2]
[315952266,1709301049611,-500.0,0.00021917,2]
[315952267,1709301049620,-500.0,0.00021917,2]
[315952268,1709301049630,-500.0,0.00021917,2]
[315952269,1709301049640,-500.0,0.00021917,2]
[315952270,1709301049649,-500.0,0.00021917,2]
[315952271,1709301049660,-221.40506222,0.00021917,2]
[315952272,1709301049671,-500.0,0.00021917,2]
[315952273,1709301049681,-500.0,0.00021917,2]
[315952274,1709301049693,-500.0,0.00021917,2]
[315952275,1709301049702,-500.0,0.00021917,2]
[315952276,1709301049711,-500.0,0.00021917,2]
[315952277,1709301049720,-500.0,0.00021917,2]
[315952278,1709301049730,-500.0,0.00021917,2]
[315952279,1709301049738,-500.0,0.00021917,2]
[315952280,1709301049748,-500.0,0.00021917,2]
[315952281,1709301049758,-500.0,0.00021917,2]
[315952282,1709301049768,-500.0,0.00021917,2]
[315952283,1709301049777,-500.0,0.00021917,2]
[315952284,1709301049787,-500.0,0.00021917,2]
[315952285,1709301049796,-500.0,0.00021917,2]
[315952286,1709301049806,-500.0,0.00021917,2]
[315952287,1709301049815,-500.0,0.00021917,2]
[315952288,1709301049825,-500.0,0.00021917,2]
[315952289,1709301049834,-500.0,0.00021917,2]
[315952290,1709301049844,-500.0,0.00021917,2]
[315952291,1709301049853,-500.0,0.00021917,2]
[315952292,1709301049862,-500.0,0.00021917,2]
[315952293,1709301049871,-500.0,0.00021917,2]
[315952294,1709301049880,-500.0,0.00021917,2]
[315952295,1709301049889,-500.0,0.00021917,2]
[315952296,1709301049898,-500.0,0.00021917,2]
[315952297,1709301049910,-1000.0,0.00021917,7]
[315952298,1709301049920,-500.0,0.00021917,2]
[315952299,1709301049930,-500.0,0.00021917,2]
[315952300,1709301049941,-500.0,0.00021917,2]
[315952301,1709301049951,-500.0,0.00021917,2]
[315952302,1709301049961,-500.0,0.00021917,2]
[315952303,1709301049971,-547.31915247,0.00021917,2]
[315952304,1709301049979,-500.0,0.00021917,2]
[315952305,1709301049989,-500.0,0.00021917,2]
[315952306,1709301049999,-500.0,0.00021917,2]
[315952307,1709301050009,-500.0,0.00021917,2]
[315952308,1709301050019,-500.0,0.00021917,2]
[315952309,1709301050029,-500.0,0.00021917,2]
[315952310,1709301050038,-500.0,0.00021917,2]
[315952311,1709301050048,-500.0,0.00021917,2]
[315952312,1709301050058,-500.0,0.00021917,2]
[315952313,1709301050068,-504.94090849,0.00021917,2]
[315952314,1709301050078,-500.0,0.00021917,2]
[315952315,1709301050086,-368.78181905,0.00021917,2]
[315952316,1709301050096,-500.0,0.00021917,2]
[315952317,1709301050105,-500.0,0.00021917,2]
[315952318,1709301050114,-500.0,0.00021917,2]
[315952319,1709301050124,-505.76790007,0.00021917,2]
[315952320,1709301050134,-500.0,0.00021917,2]
[315952321,1709301050143,-500.0,0.00021917,2]
[315952322,1709301050153,-500.0,0.00021917,2]
[315952323,1709301050163,-514.05202151,0.00021917,2]
[315952324,1709301050172,-500.0,0.00021917,2]
[315952325,1709301050181,-500.0,0.00021917,2]
[315952326,1709301050192,-500.0,0.00021917,2]
[315952327,1709301050201,-590.15880888,0.00021917,2]
[315952328,1709301050211,-515.16,0.00021917,2]
[315952329,1709301050220,-500.0,0.00021917,2]
[315952330,1709301050230,-785.93,0.00021917,2]
[315952331,1709301050240,-500.0,0.00021917,2]
[315952332,1709301050249,-500.0,0.00021917,2]
[315952333,1709301050259,-500.0,0.00021917,2]
[315952334,1709301050268,-520.84055165,0.00021917,2]
[315952335,1709301050278,-500.0,0.00021917,2]
[315952336,1709301050287,-500.0,0.00021917,2]
[315952337,1709301050296,-571.36,0.00021917,2]
[315952338,1709301050306,-500.0,0.00021917,2]
[315952339,1709301050315,-500.0,0.00021917,2]
[315952340,1709301050325,-500.0,0.00021917,2]
[315952341,1709301050334,-584.75,0.00021917,2]
[315952342,1709301050344,-500.0,0.00021917,2]
[315952343,1709301050353,-500.0,0.00021917,2]
[315952344,1709301050363,-573.49,0.00021917,2]
[315952345,1709301050372,-500.0,0.00021917,2]
[315952346,1709301050382,-500.0,0.00021917,2]
[315952347,1709301050392,-500.0,0.00021917,2]
[315952348,1709301050401,-500.0,0.00021917,2]
[315952349,1709301050411,-500.0,0.00021917,2]
[315952350,1709301050421,-500.0,0.00021917,2]
[315952351,1709301050431,-503.49274644,0.00021917,2]
[315952352,1709301050442,-500.0,0.00021917,2]
[315952353,1709301050453,-500.0,0.00021917,2]
[315952354,1709301050462,-500.0,0.00021917,2]
[315952355,1709301050472,-500.0,0.00021917,2]
[315952356,1709301050482,-590.36,0.00021917,2]
[315952357,1709301050492,-500.0,0.00021917,2]
[315952358,1709301050501,-500.0,0.00021917,2]
[315952359,1709301050511,-500.0,0.00021917,2]
[315952360,1709301050521,-500.0,0.00021917,2]
[315952361,1709301050531,-500.0,0.00021917,2]
[315952362,1709301050541,-580.32408066,0.00021917,2]
[315952363,1709301050551,-500.0,0.00021917,2]
[315952364,1709301050560,-500.0,0.00021917,2]
[315952365,1709301050570,-504.74996495,0.00021917,2]
[315952366,1709301050580,-500.67517083,0.00021917,2]
[315952367,1709301050589,-500.0,0.00021917,2]
[315952368,1709301050599,-500.0,0.00021917,2]
[315952369,1709301050609,-500.0,0.00021917,2]
[315952370,1709301050620,-168.94816611,0.00021917,2]
[315952371,1709301050629,-509.34951062,0.00021917,2]
[315952372,1709301050639,-550.68,0.00021917,2]
[315952373,1709301050649,-530.17381933,0.00021917,2]
[315952374,1709301050659,-500.0,0.00021917,2]
[315952375,1709301050669,-500.0,0.00021917,2]
[315952376,1709301050679,-500.0,0.00021917,2]
[315952377,1709301050690,-500.0,0.00021917,2]
[315952378,1709301050700,-500.0,0.00021917,2]
[315952379,1709301050709,-500.0,0.00021917,2]
[315952380,1709301050719,-500.0,0.00021917,2]
[315952381,1709301050729,-500.0,0.00021917,2]
[315952382,1709301050738,-503.57902581,0.00021917,2]
[315952383,1709301050748,-500.0,0.00021917,2]
[315952384,1709301050758,-500.0,0.00021917,2]
[315952385,1709301050768,-500.0,0.00021917,2]
[315952386,1709301050777,-500.0,0.00021917,2]
[315952387,1709301050787,-500.0,0.00021917,2]
[315952388,1709301050796,-500.0,0.00021917,2]
[315952389,1709301050806,-500.0,0.00021917,2]
[315952390,1709301050816,-500.0,0.00021917,2]
[315952391,1709301050825,-500.0,0.00021917,2]
[315952392,1709301050835,-500.0,0.00021917,2]
[315952393,1709301050845,-500.0,0.00021917,2]
[315952394,1709301050855,-500.0,0.00021917,2]
[315952395,1709301050864,-506.28383724,0.00021917,2]
[315952396,1709301050875,-543.3111244,0.00021917,2]
[315952397,1709301050884,-805.82,0.00021917,2]
[315952398,1709301050894,-500.0,0.00021917,2]
[315952399,1709301050904,-511.96636643,0.00021917,2]
[315952400,1709301050913,-500.0,0.00021917,2]
[315952401,1709301050923,-500.0,0.00021917,2]
[315952402,1709301050937,-516.22636855,0.00021917,2]
[315952403,1709301050947,-500.0,0.00021917,2]
[315952404,1709301050957,-500.0,0.00021917,2]
[315952405,1709301050967,-500.0,0.00021917,2]
[315952406,1709301050978,-500.0,0.00021917,2]
[315952407,1709301050988,-500.0,0.00021917,2]
[315952408,1709301050998,-500.0,0.00021917,2]
[315952409,1709301051009,-500.0,0.00021917,2]
[315952410,1709301051019,-303.03565823,0.00021917,2]
[315952411,1709301051028,-192.06290443,0.00021917,2]
[315952412,1709301051063,-307.93709557,0.00021917,2]
[315952413,1709301051074,-500.0,0.00021917,2]
[315952414,1709301051085,-314.78074443,0.00021917,2]
[315952415,1709301051219,-185.21925557,0.00021917,2]
[315952416,1709301051230,-500.0,0.00021917,2]
[315952417,1709301051251,-500.0,0.00021917,2]
[315952418,1709301051265,-500.0,0.00021917,2]
[315952419,1709301051276,-500.0,0.00021917,2]
[315952420,1709301051288,-500.0,0.00021917,2]
[315952421,1709301051299,-500.0,0.00021917,2]
[315952422,1709301051310,-500.0,0.00021917,2]
[315952423,1709301051321,-500.0,0.00021917,2]
[315952424,1709301051332,-500.0,0.00021917,2]
[315952425,1709301051343,-500.0,0.00021917,2]
[315952426,1709301051354,-500.0,0.00021917,2]
[315952427,1709301051366,-500.0,0.00021917,2]
[315952428,1709301051377,-500.0,0.00021917,2]
[315952429,1709301051388,-500.0,0.00021917,2]
[315952430,1709301051398,-500.0,0.00021917,2]
[315952431,1709301051409,-500.0,0.00021917,2]
[315952432,1709301051420,-500.0,0.00021917,2]
[315952433,1709301051432,-500.0,0.00021917,2]
[315952434,1709301051446,-500.0,0.00021917,2]
[315952435,1709301051457,-500.0,0.00021917,2]
[315952436,1709301051468,-586.95,0.00021917,2]
[315952437,1709301051479,-647.95,0.00021917,2]
[315952438,1709301051489,-500.0,0.00021917,2]
[315952439,1709301051499,-500.0,0.00021917,2]
[315952440,1709301051509,-500.0,0.00021917,2]
[315952441,1709301051520,-500.0,0.00021917,2]
[315952442,1709301051531,-500.0,0.00021917,2]
[315952443,1709301051542,-500.0,0.00021917,2]
[315952444,1709301051553,-500.0,0.00021917,2]
[315952445,1709301051564,-500.0,0.00021917,2]
[315952446,1709301051575,-500.0,0.00021917,2]
[315952447,1709301051587,-500.0,0.00021917,2]
[315952448,1709301051598,-500.0,0.00021917,2]
[315952449,1709301051608,-500.0,0.00021917,2]
[315952450,1709301051619,-500.0,0.00021917,2]
[315952451,1709301051631,-583.92,0.00021917,2]
[315952452,1709301051643,-500.0,0.00021917,2]
[315952453,1709301051654,-500.0,0.00021917,2]
[315952454,1709301051665,-500.0,0.00021917,2]
[315952455,1709301051681,-508.61123492,0.00021917,2]
[315952456,1709301051695,-500.0,0.00021917,2]
[315952457,1709301051706,-500.0,0.00021917,2]
[315952458,1709301051718,-500.0,0.00021917,2]
[315952459,1709301051729,-180.01898164,0.00021917,2]
[315952460,1709301051740,-500.0,0.00021917,2]
[315952461,1709301051751,-500.0,0.00021917,2]
[315952462,1709301051762,-500.0,0.00021917,2]
[315952463,1709301051773,-500.0,0.00021917,2]
[315952464,1709301051784,-500.0,0.00021917,2]
[315952465,1709301051794,-500.0,0.00021917,2]
[315952466,1709301051805,-500.0,0.00021917,2]
[315952467,1709301051816,-500.0,0.00021917,2]
[315952468,1709301051827,-502.18622501,0.00021917,2]
[315952469,1709301051838,-310.0,0.00021917,2]
[315952470,1709301051849,-500.0,0.00021917,2]
[315952471,1709301051861,-500.0,0.00021917,2]
[315952472,1709301051872,-500.0,0.00021917,2]
[315952473,1709301051883,-500.0,0.00021917,2]
[315952474,1709301051894,-626.32,0.00021917,2]
[315952475,1709301051905,-500.0,0.00021917,2]
[315952476,1709301051916,-537.15768111,0.00021917,2]
[315952477,1709301051927,-500.0,0.00021917,2]
[315952478,1709301051943,-328.47285883,0.00021917,2]
[315952479,1709301052720,-171.52714117,0.00021917,2]
[315952480,1709301052730,-500.0,0.00021917,2]
[315952481,1709301052739,-550.78101864,0.00021917,2]
[315952482,1709301052748,-343.21664019,0.00021917,2]
[315952483,1709301052763,-156.78335981,0.00021917,2]
[315952484,1709301052773,-507.95886688,0.00021917,2]
[315952485,1709301052782,-500.0,0.00021917,2]
[315952486,1709301052792,-500.0,0.00021917,2]
[315952487,1709301052801,-500.0,0.00021917,2]
[315952488,1709301052811,-500.0,0.00021917,2]
[315952489,1709301052820,-463.70217331,0.00021917,2]
[315952490,1709301055864,269.43302041,0.00016438,2]
[315952492,1709301093357,408.90869877,0.0001,2]
[315952499,1709301115810,28557.19123212,6.94e-05,2]
[315952522,1709301259139,-450.0,0.0001923,2]
[315952523,1709301260154,-450.0,0.0001923,2]
[315952524,1709301260698,-450.0,0.0001923,2]
[315952525,1709301261212,-244.91785343,0.0001923,2]
[315952526,1709301261243,-165.70840078,0.0001923,2]
[315952527,1709301261271,-39.37374579,0.0001923,2]
[315952528,1709301261794,-115.62625421,0.0001923,2]
[315952529,1709301261821,-334.37374579,0.0001923,2]
[315952530,1709301262216,-450.0,0.0001923,2]
[315952533,1709301263052,-450.0,0.0001923,2]
[315952540,1709301336708,-339.87480405,0.00019223,2]
[315952541,1709301336732,-110.12519595,0.00019223,2]
[315952542,1709301339130,-450.0,0.00019222,2]
[315952543,1709301419119,4869.21852947,0.0002509,120]
[315952546,1709301637781,1000.0,0.00021917,30]
[315952554,1709302002118,-151.23216576,0.00018234,2]
[315952557,1709302076298,-230.84148984,0.00018226,2]
[315952558,1709302076322,-219.15851016,0.00018226,2]
[315952559,1709302077685,-47.74395982,0.00018226,2]
[315952560,1709302077711,-402.25604018,0.00018226,2]
[315952561,1709302079137,-450.0,0.00018226,2]
[315952562,1709302080712,-423.02975116,0.00018225,2]
[315952563,1709302080737,-26.97024884,0.00018226,2]
[315952564,1709302082149,-178.49792302,0.00018226,2]
[315952565,1709302082174,-271.50207698,0.00018226,2]
[315952566,1709302172099,154.0,0.00018,2]
[315952594,1709302232221,-163.33354568,0.00018079,2]
[315952597,1709302232230,-716.4274349,0.00018079,2]
[315952599,1709302232242,-559.71247832,0.00018079,2]
[315952601,1709302232258,-1688.55780053,0.00018079,2]
[315952603,1709302232267,-30.04219947,0.00018079,2]
[315952606,1709302232283,-204.80562265,0.00018079,2]
[315952608,1709302232293,-365.86686513,0.0001808,2]
[315952610,1709302232304,-200.26313487,0.0001808,2]
[315952612,1709302232313,-233.65749541,0.00018211,2]
[315952615,1709302232333,-171.26561552,0.00018211,2]
[315952617,1709302232344,-993.80146576,0.00018211,2]
[315952620,1709302232364,-777.94521477,0.00018211,2]
[315952623,1709302232377,-869.03554055,0.00018211,2]
[315952627,1709302232406,-2851.51005882,0.00018211,2]
[315952629,1709302232416,-155.0,0.00018211,2]
[315952631,1709302232425,-5337.57667588,0.00018212,2]
[315952633,1709302232435,-204.01923883,0.00018212,2]
[315952635,1709302232445,-692.90731309,0.00018213,2]
[315952637,1709302232454,-1043.05598544,0.00018213,2]
[315952639,1709302232464,-165.70840078,0.00018213,2]
[315952641,1709302232473,-156.49253061,0.00018214,2]
[315952642,1709302232482,-546.60403373,0.00018214,2]
[315952644,1709302232491,-1624.09144237,0.00018217,2]
[315952646,1709302232501,-300.0,0.00018218,2]
[315952649,1709302232511,-155.0,0.00018226,2]
[315952651,1709302232520,-2138.99822812,0.00018266,2]
[315952653,1709302232529,-691.73065299,0.00018267,2]
[315952654,1709302232538,-266.99,0.00018268,2]
[315952655,1709302232546,-162.47036731,0.00019101,2]
[315952656,1709302232555,-13707.48288125,0.00019207,2]
[315953290,1709302239019,-156.49253061,0.00018078,2]
[315953292,1709302239028,-3225.23718978,0.00019207,2]
[315953294,1709302239041,-428.32625124,0.00019207,2]
[315953300,1709302239084,-464.205,0.00019207,2]
[315953302,1709302239097,-132.46857161,0.00019207,2]
[315953304,1709302239107,-453.8111159,0.00019639,2]
[315953306,1709302239118,-296.1888841,0.00019639,2]
[315953308,1709302239128,-1254.39307193,0.00019803,2]
[315953310,1709302239140,-306.979227,0.00019803,2]
[315953318,1709302239202,-1189.62770107,0.00019803,2]
[315953320,1709302239212,-321.81,0.00019884,2]
[315953322,1709302239223,-438.0,0.0002,2]
[315953324,1709302239232,-350.0,0.0002,3]
[315953326,1709302239241,-150.34140315,0.0002,2]
[315953328,1709302239250,-1016.15943733,0.0002,10]
[315953330,1709302239259,-250.0,0.00020089,2]
[315953332,1709302239269,-250.0,0.00020089,2]
[315953334,1709302239280,-1000.0,0.00020165,2]
[315953336,1709302239289,-566.13,0.00020344,2]
[315953338,1709302239298,-162.47036731,0.00020596,2]
[315953340,1709302239308,-946.47381297,0.00020819,2]
[315953342,1709302239318,-850.11,0.00021096,2]
[315953344,1709302239327,-918.04,0.00021096,2]
[315953346,1709302239335,-1636.5,0.00021096,2]
[315953348,1709302239345,-355.76,0.00021151,2]
[315953350,1709302239354,-301.38285533,0.00021246,2]
[315953352,1709302239363,-202.0,0.00021389,2]
[315953354,1709302239372,-184.33166309,0.00021438,6]
[315953356,1709302239381,-184.33166309,0.00021441,6]
[315953358,1709302239390,-184.33166309,0.0002145,6]
[315953360,1709302239399,-184.33166309,0.00021459,6]
[315953362,1709302239408,-1678.62201843,0.00021465,6]
[315953364,1709302239420,-2622.66983779,0.00021465,6]
[315953366,1709302239430,-1466.44417692,0.00021478,6]
[315953369,1709302239442,-2113.55505613,0.00021478,6]
[315953372,1709302239467,-721.29262317,0.00021478,6]
[315953375,1709302239477,-4301.29185622,0.00021482,6]
[315953377,1709302239486,-4301.29185622,0.00021486,6]
[315953378,1709302239495,-225.02,0.00021501,2]
[315953379,1709302239504,-1101.24487938,0.00021533,2]
[315953380,1709302239513,-254.0,0.00021621,2]
[315953381,1709302239522,-851.0,0.00021621,2]
[315953382,1709302239531,-177.0,0.00021621,2]
[315953383,1709302239540,-9820.40009745,0.00021717,2]
[315953391,1709302239684,-47.88632074,0.00021717,2]
[315953392,1709302239695,-541.39403152,0.00021717,2]
[315953395,1709302239720,-958.85855029,0.00021717,2]
[315953397,1709302239730,-1101.24487938,0.00021752,2]
[315953399,1709302239738,-10000.0,0.000218,2]
[315953401,1709302239747,-731.09953016,0.00021816,2]
[315953403,1709302239756,-10720.86707115,0.00021817,2]
[315953406,1709302239767,-8743.79123433,0.00021817,2]
[315953408,1709302239779,-17111.67159452,0.00021817,2]
[315953410,1709302239788,-12259.1664,0.00021817,2]
[315953412,1709302239799,-209.0,0.000219,2]
[315953414,1709302239808,-699.8320627,0.000219,2]
[315953468,1709302240299,-1126.61318167,0.000219,2]
[315953474,1709302240342,-4939.55475563,0.000219,2]
[315953476,1709302240351,-422.77326782,0.00021904,2]
[315953478,1709302240360,-756.21,0.00021907,3]
[315953480,1709302240369,-899.56,0.00021907,3]
[315953482,1709302240378,-1212.2086095,0.00021915,2]
[315953484,1709302240387,-155.24312785,0.00021915,2]
[315953486,1709302240396,-3548.3832597,0.00021915,2]
[315953488,1709302240405,-589.63666629,0.00021915,2]
[315953490,1709302240414,-155.0,0.00021915,2]
[315953492,1709302240423,-3350.92614974,0.00021915,2]
[315953494,1709302240433,-682.93264197,0.00021915,2]
[315953496,1709302240442,-1966.64512125,0.00021915,2]
[315953498,1709302240451,-927.63482205,0.00021915,2]
[315953500,1709302240460,-335.67300181,0.00021915,2]
[315953502,1709302240470,-284.58560959,0.00021916,2]
[315953504,1709302240480,-155.0,0.00021916,2]
[315953506,1709302240490,-206.26609523,0.00021916,2]
[315953508,1709302240499,-155.0,0.00021916,2]
[315953510,1709302240508,-3471.35111151,0.00021916,2]
[315953512,1709302240517,-1000.0,0.00021916,2]
[315953514,1709302240526,-357.03846845,0.00021916,2]
[315953516,1709302240535,-320.82958815,0.00021917,2]
[315953518,1709302240544,-2000.0,0.00021917,2]
[315953520,1709302240553,-2000.0,0.00021917,2]
[315953522,1709302240562,-994.38858545,0.00021917,2]
[315953524,1709302240571,-502.51044774,0.00021917,2]
[315953526,1709302240579,-500.0,0.00021917,2]
[315953528,1709302240589,-500.0,0.00021917,2]
[315953530,1709302240598,-500.0,0.00021917,2]
[315953532,1709302240607,-500.0,0.00021917,2]
[315953534,1709302240616,-500.0,0.00021917,2]
[315953536,1709302240625,-500.0,0.00021917,2]
[315953538,1709302240634,-500.0,0.00021917,2]
[315953540,1709302240644,-500.0,0.00021917,2]
[315953542,1709302240653,-500.0,0.00021917,2]
[315953544,1709302240662,-500.0,0.00021917,2]
[315953546,1709302240672,-500.0,0.00021917,2]
[315953548,1709302240681,-500.0,0.00021917,2]
[315953550,1709302240691,-500.0,0.00021917,2]
[315953552,1709302240701,-500.0,0.00021917,2]
[315953554,1709302240710,-500.0,0.00021917,2]
[315953556,1709302240720,-500.0,0.00021917,2]
[315953558,1709302240729,-500.0,0.00021917,2]
[315953560,1709302240738,-500.0,0.00021917,2]
[315953562,1709302240748,-500.0,0.00021917,2]
[315953564,1709302240757,-500.0,0.00021917,2]
[315953566,1709302240766,-500.0,0.00021917,2]
[315953568,1709302240777,-500.0,0.00021917,2]
[315953570,1709302240787,-500.0,0.00021917,2]
[315953572,1709302240797,-500.0,0.00021917,2]
[315953574,1709302240806,-507.38175252,0.00021917,2]
[315953576,1709302240816,-500.0,0.00021917,2]
[315953578,1709302240825,-500.0,0.00021917,2]
[315953581,1709302240835,-500.0,0.00021917,2]
[315953583,1709302240844,-500.0,0.00021917,2]
[315953585,1709302240854,-500.0,0.00021917,2]
[315953586,1709302240863,-500.0,0.00021917,2]
[315953588,1709302240873,-500.0,0.00021917,2]
[315953590,1709302240882,-500.0,0.00021917,2]
[315953593,1709302240891,-500.0,0.00021917,2]
[315953594,1709302240901,-239.32,0.00021917,2]
[315953596,1709302240911,-500.0,0.00021917,2]
[315953598,1709302240921,-500.0,0.00021917,2]
[315953600,1709302240930,-500.0,0.00021917,2]
[315953602,1709302240939,-500.0,0.00021917,2]
[315953604,1709302240948,-500.0,0.00021917,2]
[315953607,1709302240958,-500.0,0.00021917,2]
[315953608,1709302240967,-500.0,0.00021917,2]
[315953610,1709302240976,-500.0,0.00021917,2]
[315953612,1709302240986,-500.0,0.00021917,2]
[315953615,1709302240995,-500.0,0.00021917,2]
[315953617,1709302241004,-500.0,0.00021917,2]
[315953619,1709302241013,-500.0,0.00021917,2]
[315953621,1709302241022,-500.0,0.00021917,2]
[315953623,1709302241031,-500.0,0.00021917,2]
[315953625,1709302241040,-500.0,0.00021917,2]
[315953627,1709302241049,-500.0,0.00021917,2]
[315953628,1709302241058,-500.0,0.00021917,2]
[315953631,1709302241067,-500.0,0.00021917,2]
[315953633,1709302241077,-500.0,0.00021917,2]
[315953635,1709302241086,-500.0,0.00021917,2]
[315953637,1709302241095,-500.0,0.00021917,2]